bitfinex-derivatives/quotes_BTCF0:USTF0_20240825
["timestamp","ask_amount","ask_price","bid_price","bid_amount"]
[1724570514398,0.04643216,63907.0,63900.0,0.3608]
[1724570514701,0.04643216,63911.0,63906.0,0.4508]
[1724570514902,0.09,63912.0,63906.0,0.4508]
[1724570515201,0.09,63910.0,63906.0,0.4508]
[1724570515397,0.3608,63917.0,63906.0,0.3608]
[1724570515398,0.09,63907.0,63906.0,0.3608]
[1724570515596,0.09,63907.0,63900.0,0.3608]
[1724570515597,0.091,63907.0,63900.0,0.0072347]
[1724570515897,0.09,63903.0,63900.0,0.0072347]
[1724570516502,0.3608,63904.0,63900.0,0.0072347]
[1724570517202,0.3608,63904.0,63903.0,0.0004]
[1724570517992,0.3618,63904.0,63903.0,0.0004]
[1724570518597,0.3618,63904.0,63903.0,0.0014]
[1724570518598,0.3608,63904.0,63903.0,0.0014]
[1724570522493,0.3608,63904.0,63903.0,0.0472]
[1724570523197,0.3608,63904.0,63903.0,0.91664]
[1724570523896,0.3608,63911.0,63910.0,0.078198]
[1724570524503,0.3608,63911.0,63910.0,0.947598]
[1724570524897,0.3608,63911.0,63910.0,0.947998]
[1724570525400,0.3678,63911.0,63910.0,0.948998]
[1724570525599,0.3748,63911.0,63910.0,0.949998]
[1724570526500,0.012,63911.0,63910.0,1.309798]
[1724570527020,0.012,63911.0,63910.0,1.529798]
[1724570527497,0.0002347,63914.0,63913.0,0.078194]
[1724570527808,0.0002347,63914.0,63913.0,0.438994]
[1724570528001,0.0002347,63914.0,63913.0,1.308394]
[1724570528198,0.0002347,63914.0,63913.0,1.308794]
[1724570528699,0.078173,63931.0,63913.0,1.2306]
[1724570528905,0.078173,63931.0,63926.0,0.438978]
[1724570529107,0.3608,63934.0,63930.0,0.078173]
[1724570529299,0.3608,63934.0,63932.0,0.078171]
[1724570529501,0.07816,63941.0,63936.0,0.078166]
[1724570529884,0.07816,63941.0,63940.0,0.3608]
[1724570530111,0.07816,63941.0,63936.0,0.078166]
[1724570530294,0.07816,63941.0,63940.0,0.0004]
[1724570531911,0.54736,63941.0,63940.0,0.0004]
[1724570532223,0.54736,63941.0,63940.0,0.001]
[1724570532224,0.90816,63941.0,63940.0,0.001]
[1724570532605,0.44696,63941.0,63940.0,0.001]
[1724570533490,0.44696,63941.0,63940.0,0.002]
[1724570534914,0.44696,63941.0,63940.0,0.001]
[1724570535106,0.44696,63941.0,63940.0,0.002]
[1724570535107,0.81176,63941.0,63940.0,0.002]
[1724570535513,0.80776,63941.0,63940.0,0.001]
[1724570535715,0.81176,63941.0,63940.0,0.002]
[1724570536733,0.88992,63941.0,63940.0,0.002]
[1724570536902,0.07817,63933.0,63932.0,0.0002347]
[1724570537130,0.43897,63933.0,63932.0,0.0002347]
[1724570538406,0.43997,63933.0,63932.0,0.0002347]
[1724570542717,0.3618,63933.0,63932.0,0.0002347]
[1724570543323,0.3618,63933.0,63932.0,0.0784057]
[1724570543817,0.3618,63933.0,63932.0,0.2984057]
[1724570544610,0.3618,63933.0,63932.0,1.1676457]
[1724570545123,0.3618,63933.0,63932.0,0.0784057]
[1724570547320,0.3618,63933.0,63932.0,0.5476457]
[1724570547523,0.3618,63933.0,63932.0,0.0784057]
[1724570549325,0.001,63933.0,63932.0,1.3084457]
[1724570549621,0.3608,63941.0,63940.0,0.078161]
[1724570550016,0.3608,63941.0,63940.0,0.547361]
[1724570550325,0.0002347,63945.0,63944.0,0.078156]
[1724570551025,0.0002347,63945.0,63944.0,0.078556]
[1724570551916,0.0002347,63945.0,63944.0,0.079556]
[1724570551917,0.0072347,63945.0,63944.0,0.079556]
[1724570552228,0.0118347,63945.0,63944.0,0.948716]
[1724570552484,0.0118347,63945.0,63944.0,1.13104478]
[1724570552922,0.0118347,63945.0,63944.0,1.01112478]
[1724570553135,0.0118347,63945.0,63944.0,1.13104478]
[1724570553624,0.0118347,63945.0,63944.0,1.068636]
[1724570554325,0.0118347,63945.0,63944.0,1.13104478]
[1724570554520,0.0118347,63945.0,63944.0,1.068636]
[1724570554720,0.0002347,63951.0,63950.0,0.078149]
[1724570555020,0.0002347,63951.0,63950.0,0.547269]
[1724570555423,0.0002347,63951.0,63950.0,0.594069]
[1724570555864,7e-07,63951.0,63950.0,1.072218]
[1724570556044,0.04643216,63969.0,63968.0,0.078127]
[1724570556236,0.42281168,63972.0,63957.0,0.07814]
[1724570556237,0.3608,63972.0,63970.0,0.078125]
[1724570556428,0.3608,63972.0,63971.0,0.078123]
[1724570556733,0.3608,63972.0,63971.0,0.298123]
[1724570557028,0.0499,63980.0,63971.0,0.298123]
[1724570557029,0.00023448,63978.0,63975.0,0.078119]
[1724570557231,0.00023448,63978.0,63976.0,0.078117]
[1724570557830,0.00023448,63978.0,63977.0,0.0004]
[1724570559242,0.00623448,63978.0,63977.0,0.0004]
[1724570559922,0.01123448,63978.0,63977.0,0.2214]
[1724570561733,0.00623448,63978.0,63977.0,0.2204]
[1724570561927,0.01223448,63978.0,63977.0,0.2214]
[1724570562432,0.00823448,63978.0,63977.0,0.0024]
[1724570562932,0.00623448,63978.0,63977.0,0.0014]
[1724570563131,0.00623448,63978.0,63977.0,0.0024]
[1724570563132,0.00823448,63978.0,63977.0,0.0024]
[1724570566335,0.00823448,63978.0,63977.0,0.080516]
[1724570567128,0.00823448,63978.0,63977.0,0.079516]
[1724570567129,0.00623448,63978.0,63977.0,0.079516]
[1724570567330,0.00823448,63978.0,63977.0,0.080516]
[1724570572929,0.00823448,63978.0,63977.0,1.169436]
[1724570575840,0.00823448,63978.0,63977.0,0.769436]
[1724570576041,0.00823448,63978.0,63977.0,1.169436]
[1724570576337,0.00823448,63978.0,63977.0,0.769436]
[1724570576542,0.00823448,63978.0,63977.0,1.169436]
[1724570578261,0.00823448,63978.0,63977.0,0.769436]
[1724570578653,0.00823448,63978.0,63977.0,0.300516]
[1724570578941,0.00823448,63978.0,63977.0,0.769436]
[1724570579645,0.00823448,63978.0,63977.0,1.169436]
[1724570580143,0.00823448,63978.0,63977.0,0.080516]
[1724570584458,0.05466664,63978.0,63977.0,0.080516]
[1724570585260,0.00823448,63978.0,63977.0,0.080516]
[1724570585665,0.07042805,63978.0,63977.0,0.080516]
[1724570586269,0.00823448,63978.0,63977.0,0.080516]
[1724570588563,0.08634948,63978.0,63977.0,0.0024]
[1724570588768,0.11167438,63978.0,63977.0,0.0024]
[1724570590766,0.11167474,63978.0,63977.0,0.0024]
[1724570592365,0.08634948,63978.0,63977.0,0.0024]
[1724570592569,0.11167477,63978.0,63977.0,0.0024]
[1724570593375,0.08634948,63978.0,63977.0,0.0024]
[1724570593575,0.1640958,63978.0,63977.0,0.0024]
[1724570595166,0.08634948,63978.0,63977.0,0.0024]
[1724570595766,0.11167464,63978.0,63977.0,0.0024]
[1724570596174,0.08634948,63978.0,63977.0,0.0024]
[1724570596374,0.1116748,63978.0,63977.0,0.0024]
[1724570597678,0.4724748,63978.0,63977.0,0.0024]
[1724570598977,0.44714948,63978.0,63977.0,0.0024]
[1724570599171,0.52487181,63978.0,63977.0,0.0024]
[1724570599573,0.47247419,63978.0,63977.0,0.0024]
[1724570599876,0.47247414,63978.0,63977.0,0.0024]
[1724570600080,0.47247404,63978.0,63977.0,0.0024]
[1724570603576,0.11167404,63978.0,63977.0,0.0024]
[1724570603974,0.11167439,63978.0,63977.0,0.0024]
[1724570604379,0.078125,63970.0,63969.0,0.078126]
[1724570604585,0.438925,63970.0,63969.0,0.078126]
[1724570605175,0.439325,63970.0,63969.0,0.078126]
[1724570605491,0.51704457,63970.0,63969.0,0.078126]
[1724570606176,0.439325,63970.0,63969.0,0.078126]
[1724570606375,0.51704457,63970.0,63969.0,0.078126]
[1724570606575,0.43891957,63970.0,63969.0,0.078126]
[1724570606785,0.3612,63970.0,63969.0,0.078126]
[1724570606981,0.0054,63970.0,63969.0,0.078126]
[1724570607184,0.06755741,63970.0,63969.0,0.078126]
[1724570607688,0.05202364,63970.0,63969.0,0.12497097]
[1724570607886,0.0054,63970.0,63969.0,0.12497097]
[1724570608779,0.0054,63970.0,63969.0,0.078126]
[1724570608980,0.0054,63970.0,63969.0,0.12497097]
[1724570611491,0.0054,63970.0,63969.0,0.078126]
[1724570612085,0.0054,63970.0,63969.0,0.438926]
[1724570613282,0.0054,63970.0,63969.0,0.4857555]
[1724570613484,0.0054,63970.0,63969.0,0.438926]
[1724570619787,0.0054,63970.0,63969.0,0.4857555]
[1724570620091,0.0054,63970.0,63969.0,0.438926]
[1724570620290,0.06760828,63970.0,63969.0,0.438926]
[1724570620907,0.0054,63970.0,63969.0,0.438926]
[1724570621294,0.0675921,63970.0,63969.0,0.438926]
[1724570621795,0.0054,63970.0,63969.0,0.907886]
[1724570621999,0.06759494,63970.0,63969.0,0.97014695]
[1724570622189,0.0054,63970.0,63969.0,0.97014695]
[1724570623195,0.0054,63970.0,63969.0,1.26827295]
[1724570623399,0.0054,63970.0,63969.0,1.606012]
[1724570623599,0.05204899,63970.0,63969.0,1.606012]
[1724570624058,9.9e-07,63971.0,63970.0,0.15625]
[1724570624193,0.06219494,63977.0,63970.0,0.24880846]
[1724570624398,0.06242942,63978.0,63977.0,0.078116]
[1724570625297,0.00023448,63978.0,63977.0,0.078516]
[1724570626202,0.00023448,63978.0,63977.0,0.12533265]
[1724570626403,0.00023448,63978.0,63977.0,0.12633265]
[1724570626404,0.00223448,63978.0,63977.0,0.12633265]
[1724570627009,0.00223448,63978.0,63977.0,1.35605265]
[1724570627307,0.00423448,63978.0,63977.0,1.310236]
[1724570627605,0.00423448,63978.0,63977.0,1.37268212]
[1724570627791,0.00183448,63978.0,63977.0,1.310236]
[1724570629201,0.00183448,63978.0,63977.0,1.428836]
[1724570629403,0.00183448,63978.0,63977.0,1.49119906]
[1724570629905,0.00183448,63978.0,63977.0,1.09119906]
[1724570630099,0.00183448,63978.0,63977.0,1.028836]
[1724570630608,0.00183448,63978.0,63977.0,1.428836]
[1724570630798,0.00183448,63978.0,63977.0,1.506952]
[1724570631097,4.8e-07,63978.0,63977.0,1.506952]
[1724570631299,4.8e-07,63978.0,63977.0,1.70244612]
[1724570631503,4.8e-07,63978.0,63977.0,1.62426266]
[1724570632394,0.00015269,63984.0,63983.0,0.078109]
[1724570632596,0.00015269,63984.0,63983.0,0.658909]
[1724570633002,0.00015269,63984.0,63983.0,0.806709]
[1724570633300,0.00015269,63984.0,63983.0,0.807109]
[1724570633605,0.00015269,63984.0,63983.0,1.84407528]
[1724570634086,0.00015269,63984.0,63983.0,1.90633848]
[1724570634302,0.00115269,63984.0,63983.0,1.90731661]
[1724570634601,0.00115269,63984.0,63983.0,1.84507528]
[1724570634804,0.00115269,63984.0,63983.0,1.92318428]
[1724570635103,0.00015269,63984.0,63983.0,1.92218428]
[1724570635903,0.00015269,63984.0,63983.0,2.04050428]
[1724570636603,0.00015269,63984.0,63983.0,2.10272022]
[1724570637328,0.00015269,63984.0,63983.0,2.04050428]
[1724570638702,0.00015269,63984.0,63983.0,1.92006155]
[1724570638901,0.00015269,63984.0,63983.0,1.473418]
[1724570639106,0.00015269,63984.0,63983.0,1.873418]
[1724570639301,0.00015269,63984.0,63983.0,1.52006155]
[1724570639610,0.00015269,63984.0,63983.0,1.92006155]
[1724570640406,0.00015269,63984.0,63983.0,1.873418]
[1724570641704,0.00015269,63984.0,63983.0,1.725618]
[1724570643795,0.00015269,63984.0,63983.0,1.607298]
[1724570644103,0.00015269,63984.0,63983.0,1.725618]
[1724570644501,0.00015269,63984.0,63983.0,0.738418]
[1724570644703,0.00015269,63984.0,63983.0,0.856738]
[1724570645312,0.00015269,63984.0,63983.0,0.738418]
[1724570645502,0.00015269,63984.0,63983.0,0.856738]
[1724570648111,0.00015269,63984.0,63983.0,1.325618]
[1724570648412,0.00015269,63984.0,63983.0,1.38782746]
[1724570648713,0.00015269,63984.0,63983.0,1.02702746]
[1724570648908,0.00015269,63984.0,63983.0,1.74862746]
[1724570649310,0.00015269,63984.0,63983.0,1.686418]
[1724570649717,0.00015269,63984.0,63983.0,1.74865763]
[1724570650111,0.00015269,63984.0,63983.0,1.27977763]
[1724570650614,0.00015269,63984.0,63983.0,1.7486761]
[1724570651213,0.00015269,63984.0,63983.0,1.686418]
[1724570653310,0.00015269,63984.0,63983.0,1.76427625]
[1724570653612,0.00015269,63984.0,63983.0,1.686418]
[1724570653811,0.00015269,63984.0,63983.0,1.76427625]
[1724570654013,0.00015269,63984.0,63983.0,1.64595625]
[1724570654209,0.00015269,63984.0,63983.0,1.88065997]
[1724570654410,0.00015269,63984.0,63983.0,1.75065997]
[1724570655310,0.00015269,63984.0,63983.0,1.67280172]
[1724570655513,0.00015269,63984.0,63983.0,1.20392172]
[1724570655720,0.00015269,63984.0,63983.0,1.2818758]
[1724570656109,0.00015269,63984.0,63983.0,1.20392172]
[1724570657416,0.00015269,63984.0,63983.0,1.20417016]
[1724570659221,0.00015269,63984.0,63983.0,1.29780512]
[1724570660316,0.00015269,63984.0,63983.0,1.20417016]
[1724570661310,0.00015269,63984.0,63983.0,1.3018297]
[1724570661720,0.00015269,63984.0,63983.0,1.42345309]
[1724570662515,0.00015269,63984.0,63983.0,1.42485309]
[1724570662716,0.00015269,63984.0,63983.0,1.30517309]
[1724570671019,0.00015269,63984.0,63983.0,1.21549537]
[1724570671224,0.00015269,63984.0,63983.0,1.30549537]
[1724570672030,0.00015269,63984.0,63983.0,2.21644323]
[1724570672330,0.00015269,63984.0,63983.0,2.26264323]
[1724570673131,0.00015269,63984.0,63983.0,2.38441524]
[1724570674819,0.00015269,63984.0,63983.0,2.3844235]
[1724570675223,6.9e-07,63984.0,63983.0,2.38443092]
[1724570675425,9.4e-07,63993.0,63992.0,0.156196]
[1724570675628,0.07771957,63997.0,63992.0,0.156196]
[1724570675629,0.07771957,64006.0,63992.0,0.86382343]
[1724570675829,0.07771957,64006.0,64005.0,0.4508]
[1724570676125,0.0457,64008.0,64006.0,0.078081]
[1724570676332,0.0457,64008.0,64007.0,0.07808]
[1724570676520,0.0457,64008.0,64007.0,0.12489862]
[1724570676935,0.0457,64008.0,64007.0,0.12529862]
[1724570677138,0.0457,64008.0,64007.0,0.07848]
[1724570677628,0.0457,64008.0,64007.0,0.07948]
[1724570679134,0.0467,64008.0,64007.0,0.08048]
[1724570679943,0.0467,64008.0,64007.0,0.44128]
[1724570683544,0.001,64008.0,64007.0,0.44128]
[1724570683722,0.001,64008.0,64007.0,0.51936]
[1724570685129,0.0068,64018.0,64017.0,0.078067]
[1724570685330,0.0068,64018.0,64017.0,0.528867]
[1724570685930,0.0068,64018.0,64017.0,0.3608]
[1724570686132,0.0068,64018.0,64017.0,0.0004]
[1724570686337,0.056,64018.0,64017.0,0.0004]
[1724570686531,0.057,64018.0,64017.0,0.0014]
[1724570687445,0.057,64018.0,64017.0,0.0914]
[1724570687832,0.057,64018.0,64017.0,0.0924]
[1724570688330,0.057,64018.0,64017.0,0.0024]
[1724570691430,0.057,64018.0,64017.0,0.080467]
[1724570697235,0.0078,64018.0,64017.0,0.080467]
[1724570707145,0.0078,64018.0,64017.0,0.441267]
[1724570710442,0.0473,64036.0,64017.0,0.441267]
[1724570710644,0.078036,64043.0,64030.0,0.22]
[1724570710645,0.173236,64043.0,64030.0,0.22]
[1724570710946,0.3608,64047.0,64039.0,0.078041]
[1724570711241,0.31409751,64052.0,64044.0,0.078035]
[1724570711340,0.31409751,64052.0,64044.0,0.438835]
[1724570712642,0.31409751,64052.0,64044.0,0.48561684]
[1724570712643,0.07784459,64047.0,64044.0,0.48561684]
[1724570712946,0.07784459,64047.0,64044.0,0.40758184]
[1724570713146,0.2365135,64052.0,64044.0,0.40758184]
[1724570713360,0.078032,64046.0,64044.0,0.40758184]
[1724570713540,0.078032,64046.0,64044.0,0.40958184]
[1724570713850,0.3145385,64052.0,64044.0,0.40958184]
[1724570714045,0.2365135,64052.0,64044.0,0.40958184]
[1724570714251,0.2365135,64052.0,64046.0,0.078032]
[1724570714451,0.2365135,64052.0,64047.0,0.078031]
[1724570715468,0.2365135,64052.0,64044.0,0.40958184]
[1724570715469,0.2365135,64052.0,64048.0,0.07803]
[1724570715474,0.2365135,64052.0,64044.0,0.40958184]
[1724570715475,0.1431,64052.0,64049.0,0.078028]
[1724570715838,0.1431,64052.0,64050.0,0.078027]
[1724570716453,0.47062242,64061.0,64050.0,0.078027]
[1724570716643,0.0497,64054.0,64050.0,0.078027]
[1724570717048,0.0497,64054.0,64053.0,0.078024]
[1724570717350,0.3608,64055.0,64054.0,0.078022]
[1724570718647,0.3608,64055.0,64054.0,0.079022]
[1724570719654,0.3608,64055.0,64054.0,0.080022]
[1724570720754,0.3608,64067.0,64054.0,0.002]
[1724570720947,0.078001,64072.0,64060.0,0.3608]
[1724570721254,0.3608,64079.0,64070.0,0.3608]
[1724570721255,0.077995,64077.0,64070.0,0.3608]
[1724570721452,0.4682,64076.0,64070.0,0.3608]
[1724570721855,0.4682,64075.0,64070.0,0.3608]
[1724570722054,0.4682,64076.0,64070.0,0.3608]
[1724570722663,0.077995,64077.0,64070.0,0.3608]
[1724570722853,0.077995,64077.0,64072.0,0.078]
[1724570723366,0.077995,64077.0,64070.0,0.3608]
[1724570723660,0.3608,64079.0,64070.0,0.3608]
[1724570723661,0.077997,64076.0,64070.0,0.3608]
[1724570723756,0.077997,64076.0,64070.0,0.3628]
[1724570724757,0.3608,64079.0,64070.0,0.3628]
[1724570724956,0.3608,64071.0,64070.0,0.002]
[1724570725350,1.22904,64071.0,64070.0,0.002]
[1724570725861,1.22904,64071.0,64060.0,0.00023429]
[1724570726053,0.078014,64061.0,64060.0,0.00023429]
[1724570727150,0.078014,64061.0,64060.0,0.00123429]
[1724570727765,0.078014,64061.0,64060.0,0.00223429]
[1724570729958,0.907134,64061.0,64060.0,0.00223429]
[1724570730951,1.307134,64061.0,64060.0,0.00223429]
[1724570731463,0.907134,64061.0,64060.0,0.00223429]
[1724570733158,1.307134,64061.0,64060.0,0.00223429]
[1724570733796,0.907134,64061.0,64060.0,0.00223429]
[1724570734161,0.3608,64061.0,64060.0,0.00223429]
[1724570734467,0.3608,64061.0,64060.0,0.08024929]
[1724570739860,0.3608,64061.0,64060.0,0.00223429]
[1724570740065,0.438814,64061.0,64060.0,0.00223429]
[1724570740273,0.51632933,64061.0,64060.0,0.00223429]
[1724570740468,0.43831533,64061.0,64060.0,0.00223429]
[1724570741468,1.33242747,64061.0,64046.0,0.0487]
[1724570741667,1.33242747,64061.0,64044.0,0.04678184]
[1724570741668,0.3608,64049.0,64042.0,0.00144]
[1724570741867,0.3608,64049.0,64041.0,0.00012821]
[1724570741868,0.06217753,64045.0,64041.0,0.22012821]
[1724570742065,0.06217825,64048.0,64041.0,0.22012821]
[1724570742265,0.3608,64056.0,64047.0,0.07803]
[1724570742266,0.06217825,64049.0,64047.0,0.07803]
[1724570743269,0.06317825,64049.0,64047.0,0.07803]
[1724570744467,0.001,64049.0,64047.0,0.07803]
[1724570744667,0.001,64049.0,64044.0,0.3608]
[1724570744874,0.06218053,64047.0,64044.0,0.3608]
[1724570745067,0.06218053,64048.0,64044.0,0.3608]
[1724570746065,0.06218053,64047.0,64044.0,0.3608]
[1724570746283,0.06218053,64047.0,64044.0,0.438834]
[1724570746461,0.06218053,64048.0,64044.0,0.438834]
[1724570746665,0.06218053,64047.0,64044.0,0.438834]
[1724570747772,0.14021153,64047.0,64044.0,0.438834]
[1724570748078,0.14021153,64047.0,64042.0,0.0002341]
[1724570748079,0.06218053,64046.0,64042.0,0.0002341]
[1724570748345,0.04663542,64043.0,64042.0,0.0002341]
[1724570748577,0.06218053,64045.0,64042.0,0.0002341]
[1724570748779,0.14021353,64045.0,64042.0,0.0002341]
[1724570749369,0.04624281,64044.0,64042.0,0.0002341]
[1724570749576,0.078033,64045.0,64042.0,0.0002341]
[1724570749877,0.078033,64045.0,64044.0,0.3608]
[1724570749878,0.0004,64045.0,64044.0,0.3608]
[1724570750997,0.0024,64045.0,64044.0,0.3608]
[1724570751596,0.0024,64045.0,64044.0,0.438834]
[1724570752995,0.0024,64045.0,64044.0,0.078034]
[1724570753396,0.0024,64045.0,64044.0,0.438834]
[1724570758401,0.06458053,64045.0,64044.0,0.438834]
[1724570758592,0.0024,64045.0,64044.0,0.438834]
[1724570758996,0.06458053,64045.0,64044.0,0.438834]
[1724570759395,0.06468085,64045.0,64044.0,0.438834]
[1724570761498,0.0024,64045.0,64044.0,0.438834]
[1724570762636,0.06468611,64045.0,64044.0,0.438834]
[1724570763606,0.06468611,64045.0,64044.0,0.48561584]
[1724570763906,0.0024,64045.0,64044.0,0.438834]
[1724570764299,0.06145182,64051.0,64044.0,0.7608]
[1724570764506,0.06145182,64052.0,64051.0,0.078026]
[1724570764723,0.00023301,64054.0,64053.0,0.078024]
[1724570765108,0.00023301,64054.0,64053.0,0.946384]
[1724570765301,1e-08,64054.0,64053.0,1.49965183]
[1724570765496,1e-08,64054.0,64053.0,1.51922973]
[1724570767808,1e-08,64054.0,64053.0,1.39794973]
[1724570768006,1e-08,64054.0,64053.0,1.51922973]
[1724570768203,1e-08,64054.0,64053.0,1.49944309]
[1724570768604,1e-08,64054.0,64053.0,0.79738361]
[1724570768823,1e-08,64054.0,64053.0,0.91866361]
[1724570769409,1e-08,64054.0,64053.0,0.84090261]
[1724570770010,1e-08,64054.0,64053.0,0.72984866]
[1724570770199,1e-08,64054.0,64053.0,0.667664]
[1724570770808,1e-08,64054.0,64053.0,0.546384]
[1724570771014,1e-08,64054.0,64053.0,0.078024]
[1724570772313,1e-08,64054.0,64053.0,0.078424]
[1724570772608,1e-08,64054.0,64053.0,0.546784]
[1724570774171,1e-08,64054.0,64053.0,0.078424]
[1724570780724,1e-08,64054.0,64053.0,0.439224]
[1724570785627,1e-08,64054.0,64053.0,0.078424]
[1724570785925,1e-08,64054.0,64053.0,0.439224]
[1724570796638,1e-08,64054.0,64053.0,0.078424]
[1724570798041,0.07802201,64054.0,64053.0,0.078424]
[1724570800559,0.43882201,64054.0,64053.0,0.0004]
[1724570800734,0.46411511,64054.0,64053.0,0.0004]
[1724570801848,0.55713812,64054.0,64053.0,0.0004]
[1724570802032,0.55713812,64054.0,64053.0,0.078424]
[1724570802033,0.94747612,64054.0,64053.0,0.078424]
[1724570802343,0.02529524,64054.0,64053.0,0.078424]
[1724570802744,1e-08,64054.0,64053.0,0.078424]
[1724570805142,0.07792978,64054.0,64053.0,0.0004]
[1724570805340,0.02529325,64054.0,64053.0,0.0004]
[1724570805541,0.02529325,64054.0,64053.0,0.078424]
[1724570805750,1e-08,64054.0,64053.0,0.078424]
[1724570807743,0.02529338,64054.0,64053.0,0.078424]
[1724570807942,1e-08,64054.0,64053.0,0.078424]
[1724570808449,0.07794564,64054.0,64053.0,0.078424]
[1724570808651,1e-08,64054.0,64053.0,0.078424]
[1724570810000,0.07802201,64054.0,64053.0,0.078424]
[1724570810255,0.10331557,64054.0,64053.0,0.078424]
[1724570810450,0.07802201,64054.0,64053.0,0.078424]
[1724570810944,0.07802201,64054.0,64053.0,0.0004]
[1724570811250,0.15596635,64054.0,64053.0,0.0004]
[1724570811445,0.07802201,64054.0,64053.0,0.0004]
[1724570812640,0.15596635,64054.0,64053.0,0.0004]
[1724570814950,0.10331599,64054.0,64053.0,0.0004]
[1724570815751,0.46411599,64054.0,64053.0,0.0004]
[1724570816751,0.93247599,64054.0,64053.0,0.0004]
[1724570818055,0.078031,64047.0,64046.0,0.078032]
[1724570818256,0.438831,64047.0,64046.0,0.078032]
[1724570818943,0.078034,64044.0,64043.0,0.04664788]
[1724570819243,0.078034,64044.0,64042.0,0.0002341]
[1724570819244,0.078036,64043.0,64042.0,0.0002341]
[1724570819534,0.078043,64037.0,64036.0,0.04664788]
[1724570819653,0.078045,64035.0,64034.0,0.04664788]
[1724570819853,0.3608,64038.0,64033.0,0.12469488]
[1724570819854,0.078047,64034.0,64033.0,0.12469488]
[1724570820047,0.078047,64034.0,64031.0,0.04664788]
[1724570820355,0.078047,64034.0,64030.0,0.04664788]
[1724570820651,0.00011495,64033.0,64030.0,0.04664788]
[1724570821247,0.00011495,64033.0,64029.0,0.078052]
[1724570821953,0.00011495,64033.0,64030.0,0.012]
[1724570822253,0.00011495,64033.0,64030.0,0.023]
[1724570822447,0.00011495,64033.0,64030.0,0.011]
[1724570822648,0.00011495,64033.0,64030.0,0.089051]
[1724570823245,0.00011495,64033.0,64030.0,0.101051]
[1724570824264,0.00011495,64033.0,64030.0,0.023]
[1724570824550,0.06236828,64033.0,64030.0,0.023]
[1724570824766,0.07805,64031.0,64030.0,0.023]
[1724570825750,0.43885,64031.0,64030.0,0.023]
[1724570826049,0.90737,64031.0,64030.0,0.023]
[1724570826351,1.0192582,64031.0,64030.0,0.023]
[1724570826551,1.35707,64031.0,64030.0,0.023]
[1724570827255,1.41924153,64031.0,64030.0,0.023]
[1724570827458,0.078055,64027.0,64026.0,0.0002341]
[1724570827847,0.946615,64027.0,64026.0,0.0002341]
[1724570828048,0.07806,64024.0,64019.0,0.078065]
[1724570828453,0.078063,64021.0,64019.0,0.078065]
[1724570828680,0.438864,64020.0,64012.0,0.3223]
[1724570828853,0.438864,64020.0,64011.0,0.3608]
[1724570828854,0.07807,64015.0,64011.0,0.3608]
[1724570829755,0.0004,64012.0,64011.0,0.438875]
[1724570829961,0.0004,64012.0,64011.0,0.452875]
[1724570830462,0.0004,64012.0,64011.0,0.092075]
[1724570831362,0.0004,64012.0,64011.0,0.095075]
[1724570831559,0.0004,64012.0,64011.0,0.084075]
[1724570831960,0.0004,64012.0,64011.0,0.081075]
[1724570832152,0.0004,64012.0,64011.0,0.078075]
[1724570832463,0.0004,64012.0,64011.0,0.080075]
[1724570832958,0.0004,64012.0,64011.0,0.085075]
[1724570838661,0.0004,64012.0,64011.0,0.082075]
[1724570838856,0.0004,64012.0,64011.0,0.085075]
[1724570839061,0.0004,64012.0,64011.0,0.081075]
[1724570839271,0.0004,64012.0,64011.0,0.084075]
[1724570841580,0.0004,64012.0,64011.0,0.083075]
[1724570841866,0.0004,64012.0,64011.0,0.080075]
[1724570842069,0.0004,64012.0,64011.0,0.084075]
[1724570842465,0.0004,64012.0,64011.0,0.085075]
[1724570842662,0.0003625,64019.0,64018.0,0.078066]
[1724570842863,0.06217153,64037.0,64032.0,0.078049]
[1724570843070,0.0473,64038.0,64032.0,0.078049]
[1724570843265,0.078044,64036.0,64032.0,0.078049]
[1724570844464,0.09,64034.0,64032.0,0.078049]
[1724570845064,0.09,64034.0,64032.0,0.079049]
[1724570845675,0.101,64034.0,64033.0,0.078048]
[1724570845878,0.011,64034.0,64033.0,0.168048]
[1724570846074,0.015,64034.0,64033.0,0.168048]
[1724570846394,0.008,64034.0,64033.0,0.168048]
[1724570846581,0.008,64034.0,64033.0,0.078048]
[1724570848272,0.004,64034.0,64033.0,0.078048]
[1724570848472,0.008,64034.0,64033.0,0.078048]
[1724570848672,0.004,64034.0,64033.0,0.078048]
[1724570848875,0.005,64034.0,64033.0,0.078048]
[1724570849073,0.001,64034.0,64033.0,0.078048]
[1724570849270,0.3608,64039.0,64034.0,0.078046]
[1724570849621,0.3608,64039.0,64033.0,0.003]
[1724570849871,0.3608,64039.0,64038.0,0.078042]
[1724570850180,0.3608,64039.0,64038.0,0.078442]
[1724570851779,0.3628,64039.0,64038.0,0.078442]
[1724570852430,0.3648,64039.0,64038.0,0.078442]
[1724570854480,0.3648,64039.0,64038.0,0.0004]
[1724570854481,0.442841,64039.0,64038.0,0.0004]
[1724570854679,0.490941,64039.0,64038.0,0.0004]
[1724570857287,0.56882516,64039.0,64038.0,0.0004]
[1724570858286,0.490941,64039.0,64038.0,0.0004]
[1724570859983,0.078053,64029.0,64028.0,0.00023429]
[1724570860173,0.50112293,64029.0,64028.0,0.00023429]
[1724570860379,0.438853,64029.0,64028.0,0.00023429]
[1724570860783,0.439253,64029.0,64028.0,0.00023429]
[1724570861381,0.50152397,64029.0,64028.0,0.00023429]
[1724570861752,0.50252397,64029.0,64028.0,0.00823429]
[1724570862285,0.440253,64029.0,64028.0,0.00823429]
[1724570862583,0.441253,64029.0,64028.0,0.01723429]
[1724570865009,0.080453,64029.0,64028.0,0.01723429]
[1724570865294,0.441253,64029.0,64028.0,0.01723429]
[1724570867708,1.68570341,64029.0,64028.0,0.01723429]
[1724570867995,1.68570341,64029.0,64018.0,0.40753419]
[1724570867996,0.078061,64023.0,64018.0,0.3608]
[1724570868186,0.078061,64023.0,64019.0,0.078064]
[1724570868187,0.06230573,64021.0,64019.0,0.078064]